bitfinex-derivatives/quotes_SOLF0:USTF0_20250514
["timestamp","ask_amount","ask_price","bid_price","bid_amount"]
[1747191191564,61.74,180.19,180.18,5.55]
[1747191193069,61.74,180.19,180.17,5.5504]
[1747191193368,61.72,180.2,180.12,1.768]
[1747191193762,61.72,180.2,180.18,5.55]
[1747191194368,5.5494,180.21,180.18,5.55]
[1747191194567,67.2696,180.2,180.17,5.5505]
[1747191194775,61.72,180.2,180.12,1.768]
[1747191195679,5.5503,180.18,180.15,5.551]
[1747191195968,5.5503,180.18,180.12,1.768]
[1747191196971,5.55,180.19,180.15,5.5509]
[1747191197273,5.55,180.19,180.12,1.768]
[1747191197570,5.55,180.19,180.15,5.551]
[1747191199271,5.55,180.19,180.16,5.5508]
[1747191199470,67.2697,180.2,180.16,5.5508]
[1747191199671,5.5497,180.2,180.16,5.5508]
[1747191199867,61.7,180.19,180.16,5.5508]
[1747191200171,61.7,180.19,180.11,61.8]
[1747191200769,5.5508,180.17,180.13,5.5515]
[1747191201371,61.7,180.19,180.11,61.8]
[1747191201872,5.5513,180.15,180.12,5.5519]
[1747191202274,61.7,180.19,180.12,5.5519]
[1747191202474,5.5509,180.16,180.12,5.5519]
[1747191203569,61.7,180.19,180.11,61.8]
[1747191203971,61.7,180.18,180.1,5.5527]
[1747191204677,5.5514,180.15,180.1,5.5527]
[1747191204874,5.5514,180.15,180.11,5.5524]
[1747191205068,61.7,180.18,180.11,5.5524]
[1747191205274,5.5516,180.14,180.08,481.3419]
[1747191207078,5.5516,180.14,180.1,5.5524]
[1747191208572,5.5516,180.14,180.11,5.5523]
[1747191208873,61.7,180.18,180.08,481.3419]
[1747191209181,61.7,180.18,180.09,1.8718]
[1747191209478,5.5509,180.16,180.09,1.8718]
[1747191209878,5.5509,180.16,180.13,5.5518]
[1747191211279,5.5509,180.16,180.12,5.552]
[1747191211478,5.5506,180.17,180.09,1.8718]
[1747191211780,5.5506,180.17,180.13,5.5516]
[1747191212479,5.5506,180.17,180.14,5.5514]
[1747191212985,5.5506,180.17,180.13,5.5517]
[1747191213279,61.7,180.18,180.08,481.3419]
[1747191213579,61.7,180.18,180.1,5.5526]
[1747191214180,5.5518,180.13,180.1,5.5526]
[1747191215584,61.68,180.14,180.11,5.5524]
[1747191215782,61.68,180.14,180.08,481.3419]
[1747191216780,61.68,180.14,180.09,5.5528]
[1747191217281,5.552,180.13,180.1,5.5526]
[1747191217880,5.552,180.13,180.09,5.553]
[1747191218283,61.68,180.14,180.07,61.7]
[1747191218777,5.5528,180.1,180.07,61.7]
[1747191218979,61.68,180.14,180.07,67.2535]
[1747191219784,5.5525,180.11,180.07,67.2535]
[1747191220184,61.68,180.14,180.07,67.2535]
[1747191220987,5.5526,180.11,180.07,67.2535]
[1747191221284,61.68,180.14,180.07,61.7]
[1747191222986,5.5522,180.12,180.09,5.553]
[1747191223585,5.5522,180.12,180.08,5.5533]
[1747191224284,5.5522,180.12,180.09,5.553]
[1747191226285,67.2122,180.12,180.09,5.553]
[1747191226787,5.5525,180.11,180.08,5.5532]
[1747191227188,61.66,180.12,180.08,5.5532]
[1747191227391,5.5524,180.11,180.08,5.5532]
[1747191228391,5.5524,180.11,180.07,67.2535]
[1747191228691,5.5524,180.11,180.07,61.7]
[1747191229189,5.5524,180.11,180.08,5.5531]
[1747191229386,67.2122,180.12,180.08,5.5531]
[1747191229595,61.66,180.12,180.08,5.5531]
[1747191230295,61.66,180.12,180.09,5.553]
[1747191231186,67.2123,180.12,180.08,5.5532]
[1747191231389,61.66,180.12,180.07,61.7]
[1747191231893,5.5527,180.1,180.07,67.2534]
[1747191232197,61.66,180.12,180.07,67.2534]
[1747191232791,61.7,180.18,180.07,61.7]
[1747191232993,61.64,180.17,180.07,61.7]
[1747191235099,5.5512,180.15,180.11,5.5522]
[1747191235399,61.64,180.17,180.07,61.7]
[1747191235600,5.552,180.13,180.09,5.5529]
[1747191235799,61.62,180.12,180.07,61.7]
[1747191236999,61.62,180.12,180.1,5.5527]
[1747191238300,61.62,180.12,180.09,5.5529]
[1747191238501,67.1721,180.12,180.07,61.7]
[1747191238700,61.62,180.12,180.07,61.7]
[1747191239801,61.62,180.12,180.08,5.5532]
[1747191240303,67.1723,180.12,180.08,5.5532]
[1747191241803,5.5524,180.11,180.08,5.5532]
[1747191243003,67.1722,180.12,180.08,5.5532]
[1747191245805,5.5525,180.11,180.08,5.5532]
[1747191246006,61.62,180.12,180.05,61.62]
[1747191247909,5.5533,180.09,180.05,67.1742]
[1747191248311,5.5533,180.08,180.05,67.1742]
[1747191249009,5.5531,180.09,180.05,67.1742]
[1747191249209,61.62,180.12,180.05,67.1742]
[1747191249610,5.5531,180.09,180.05,67.1742]
[1747191250312,61.62,180.12,180.05,61.62]
[1747191250707,61.7,180.18,180.05,61.62]
[1747191250907,67.1506,180.17,180.12,5.5518]
[1747191251213,364.0,180.19,180.05,61.62]
[1747191251512,61.58,180.19,180.06,123.22]
[1747191252012,5.5509,180.16,180.06,61.64]
[1747191252311,61.58,180.19,180.06,61.64]
[1747191252507,5.5512,180.15,180.11,5.5522]
[1747191252716,5.5512,180.15,180.06,61.64]
[1747191253117,61.58,180.14,180.1,5.5525]
[1747191254117,5.5518,180.13,180.1,5.5525]
[1747191254515,67.1315,180.14,180.11,5.5523]
[1747191255508,67.1315,180.14,180.06,61.64]
[1747191255714,5.5518,180.13,180.1,5.5526]
[1747191256010,61.58,180.14,180.1,5.5526]
[1747191256211,67.1315,180.14,180.1,5.5526]
[1747191256518,67.1315,180.14,180.11,5.5523]
[1747191256711,158.50264295,180.21,180.06,61.64]
[1747191257009,62.55662955,180.2,180.15,5.5509]
[1747191257213,5.5502,180.19,180.15,5.5509]
[1747191257405,61.56,180.2,180.12,61.62]
[1747191257605,61.56,180.19,180.14,5.5512]
[1747191257915,5.5505,180.18,180.14,5.5512]
[1747191258116,61.56,180.19,180.12,61.62]
[1747191258618,67.1101,180.19,180.15,5.5509]
[1747191259718,5.5504,180.18,180.15,5.5509]
[1747191260819,67.11,180.19,180.16,5.5508]
[1747191261014,67.11,180.19,180.13,1.7998]
[1747191261319,67.11,180.19,180.15,5.5511]
[1747191261818,5.5502,180.18,180.15,5.5511]
[1747191263219,61.56,180.19,180.13,1.7998]
[1747191263420,541.46,180.23,180.13,3.6699]
[1747191263620,61.54,180.22,180.14,1.7379]
[1747191263822,5.5492,180.22,180.18,5.55]
[1747191264014,364.0,180.28,180.14,1.7379]
[1747191264219,123.06,180.27,180.18,5.5501]
[1747191264521,0.99725399,180.26,180.14,1.7379]
[1747191264823,5.5495,180.21,180.17,5.5503]
[1747191265012,61.54,180.2,180.17,5.5503]
[1747191265420,61.54,180.2,180.12,5.552]
[1747191265620,61.52,180.22,180.07,66.9325]
[1747191266012,5.55,180.19,180.15,5.5511]
[1747191266212,62.51714668,180.21,180.15,5.5511]
[1747191266418,61.52,180.21,180.07,66.9325]
[1747191266617,61.52,180.2,180.07,66.9325]
[1747191267123,5.5506,180.17,180.07,66.9325]
[1747191267322,61.52,180.2,180.07,66.9325]
[1747191267617,364.96625064,180.27,180.07,66.9325]
[1747191267921,5.5499,180.19,180.16,5.5507]
[1747191268123,364.0,180.26,180.12,61.52]
[1747191268323,61.52,180.24,180.13,66.9043]
[1747191268719,5.5495,180.21,180.17,5.5503]
[1747191268918,61.52,180.2,180.17,5.5503]
[1747191269624,61.52,180.2,180.18,5.5501]
[1747191272428,5.5495,180.21,180.18,5.5501]
[1747191272627,61.5,180.2,180.18,5.5501]
[1747191273927,364.0,180.26,180.13,66.9043]
[1747191274126,124.01948344,180.25,180.13,66.9043]
[1747191274323,123.02,180.25,180.13,66.9043]
[1747191274626,5.5486,180.24,180.2,5.5494]
[1747191274924,61.5,180.23,180.2,5.5494]
[1747191275727,61.5,180.23,180.21,5.549]
[1747191276026,5.5486,180.24,180.21,5.549]
[1747191276228,61.48,180.23,180.21,5.549]
[1747191277031,364.0,180.26,180.13,66.9043]
[1747191277226,61.48,180.25,180.13,66.9043]
[1747191279033,67.0281,180.25,180.22,5.5488]
[1747191279625,61.48,180.25,180.22,5.5488]
[1747191279827,61.48,180.25,180.23,5.5485]
[1747191281829,5.548,180.26,180.23,5.5485]
[1747191282031,61.46,180.25,180.23,5.5485]
[1747191282533,67.0081,180.25,180.22,5.5489]
[1747191285640,61.46,180.25,180.23,5.5487]
[1747191285827,61.46,180.25,180.19,3.5085]
[1747191286228,364.0,180.32,180.19,3.5085]
[1747191286433,61.44,180.31,180.2,1.7887]
[1747191286632,62.44251998,180.31,180.2,1.7887]
[1747191286825,5.5466,180.3,180.27,5.5473]
[1747191287029,61.44,180.31,180.23,61.5]
[1747191287237,364.2175,180.37,180.23,61.5]
[1747191287438,67.98869305,180.33,180.29,5.5466]
[1747191287635,66.9859,180.33,180.29,5.5466]
[1747191288337,66.9859,180.33,180.23,61.5]
[1747191289635,61.44,180.33,180.23,61.5]
[1747191290130,66.9858,180.33,180.23,61.5]
[1747191290330,61.44,180.33,180.23,61.5]
[1747191291337,66.9857,180.33,180.29,5.5468]
[1747191291537,66.9857,180.33,180.23,61.5]
[1747191292738,67.0454,180.34,180.3,5.5463]
[1747191292936,61.4,180.33,180.3,5.5463]
[1747191293933,66.9457,180.33,180.3,5.5463]
[1747191294536,66.9457,180.33,180.29,5.5468]
[1747191294839,5.546,180.32,180.29,5.5468]
[1747191295142,66.9457,180.33,180.29,5.5468]
[1747191295438,66.9457,180.33,180.3,5.5465]
[1747191296138,61.4,180.33,180.3,5.5465]
[1747191296339,61.4,180.33,180.29,5.5468]
[1747191296541,66.9459,180.33,180.29,5.5468]
[1747191296740,61.4,180.33,180.28,5.5471]
[1747191297038,61.4,180.33,180.23,61.5]
[1747191297240,5.5461,180.32,180.29,5.5468]
[1747191298144,61.4,180.33,180.3,5.5465]
[1747191298441,61.4,180.33,180.23,61.5]
[1747191298740,66.9459,180.33,180.29,5.5466]
[1747191299743,5.5459,180.32,180.29,5.5466]
[1747191299942,61.4,180.33,180.28,5.5471]
[1747191300241,61.4,180.33,180.23,61.5]
[1747191300541,5.5466,180.3,180.26,5.5475]
[1747191300839,5.5466,180.3,180.23,61.5]
[1747191301841,5.5466,180.3,180.26,5.5475]
[1747191302238,5.5466,180.3,180.23,61.5]
[1747191302543,5.5466,180.3,180.27,5.5473]
[1747191304842,5.5465,180.31,180.23,61.5]
[1747191305444,61.4,180.33,180.23,61.5]
[1747191305636,61.34,180.32,180.23,61.5]
[1747191306142,61.34,180.32,180.3,5.5465]
[1747191309741,61.34,180.32,180.23,61.5]
[1747191310243,61.34,180.32,180.3,5.5464]
[1747191310439,5.5454,180.34,180.3,5.5464]
[1747191310640,61.32,180.32,180.3,5.5464]
[1747191311143,5.5454,180.34,180.3,5.5464]
[1747191311339,61.32,180.33,180.31,5.5462]
[1747191312346,61.38,180.35,180.32,5.5459]
[1747191312547,61.32,180.34,180.23,61.5]
[1747191312742,61.32,180.34,180.33,5.5456]
[1747191314046,61.36,180.41,180.28,61.36]
[1747191314347,1.00327349,180.4,180.29,66.896]
[1747191314544,61.3,180.39,180.38,5.5441]
[1747191315044,61.36,180.43,180.41,5.5431]
[1747191315248,61.3,180.42,180.41,5.5431]
[1747191316246,61.36,180.43,180.41,5.5431]
[1747191316446,61.3,180.42,180.41,5.5431]
[1747191317746,61.3,180.42,180.29,13.0032]
[1747191317747,61.3,180.42,180.31,61.36]
[1747191317955,1.00440328,180.41,180.31,61.36]
[1747191318143,1.00440328,180.41,180.32,5.5459]
[1747191318449,1.00440328,180.41,180.31,61.36]
[1747191318649,1.00440328,180.41,180.29,3.6977]
[1747191319146,1.00440328,180.41,180.32,5.5459]
[1747191319951,5.545,180.35,180.32,5.5459]
[1747191320248,61.26,180.34,180.27,479.42]
[1747191320451,61.26,180.33,180.26,61.36]
[1747191320950,5.5471,180.29,180.22,64.9479]
[1747191321150,61.26,180.28,180.22,64.9479]
[1747191322148,364.2142,180.37,180.22,64.9479]
[1747191322347,62.26429701,180.36,180.22,64.9479]
[1747191322550,61.26,180.36,180.22,64.9479]
[1747191322948,5.5455,180.34,180.3,5.5463]
[1747191323544,61.26,180.36,180.28,5.5469]
[1747191324056,5.5458,180.33,180.23,61.26]
[1747191324250,5.5458,180.33,180.29,5.5466]
[1747191324448,61.26,180.36,180.29,5.5466]
[1747191324649,1.00371523,180.35,180.22,64.9479]
[1747191324951,1.00371523,180.35,180.22,63.1884]
[1747191325161,1.00371523,180.35,180.23,1.7876]
[1747191325447,1.00371523,180.35,180.28,5.5469]
[1747191325652,1.00371523,180.35,180.23,1.7876]
[1747191325856,1.00371523,180.35,180.26,5.5477]
[1747191326454,5.5469,180.29,180.26,5.5477]
[1747191326653,66.7869,180.29,180.26,5.5477]
[1747191326855,61.24,180.29,180.26,5.5477]
[1747191328854,66.7871,180.29,180.25,5.5481]
[1747191329256,66.7871,180.29,180.26,5.5477]
[1747191330058,61.24,180.29,180.25,5.548]
[1747191330560,66.7871,180.29,180.25,5.548]
[1747191331656,66.7871,180.29,180.26,5.5477]
[1747191333764,61.24,180.29,180.27,5.5474]
[1747191334364,66.7869,180.29,180.26,5.5477]
[1747191335663,61.24,180.29,180.27,5.5474]
[1747191336762,66.7869,180.29,180.26,5.5477]
[1747191337763,61.24,180.29,180.23,1.7876]
[1747191338061,61.24,180.29,180.22,63.1884]
[1747191338264,61.24,180.29,180.23,5.5485]
[1747191339065,5.5477,180.27,180.23,5.5485]
[1747191339265,61.24,180.29,180.22,63.1884]
[1747191340166,5.5472,180.28,180.24,5.5484]
[1747191340661,5.5472,180.28,180.25,5.548]
[1747191340866,61.2,180.27,180.22,63.1884]
[1747191341470,61.2,180.27,180.26,5.5475]
[1747191342568,5.5468,180.3,180.27,5.5475]
[1747191342869,61.18,180.29,180.27,5.5475]
[1747191343769,66.7269,180.29,180.26,5.5477]
[1747191343970,61.18,180.29,180.22,63.1884]
[1747191344766,66.7269,180.29,180.26,5.5476]
[1747191345464,0.217,180.36,180.22,63.1884]
[1747191345665,62.26748292,180.35,180.22,63.1884]
[1747191345869,62.18748292,180.34,180.22,63.1884]
[1747191346169,66.7254,180.34,180.31,5.5462]
[1747191346370,61.18,180.33,180.31,5.5462]
[1747191349773,61.18,180.33,180.3,5.5465]
[1747191350270,66.7257,180.33,180.3,5.5465]
[1747191351770,61.14,180.33,180.22,63.1884]
[1747191352373,61.14,180.33,180.32,5.5459]
[1747191353273,61.14,180.33,180.31,5.5462]
[1747191354573,61.14,180.33,180.32,5.5459]
[1747191354775,66.8051,180.35,180.32,5.5459]
[1747191354973,61.12,180.34,180.32,5.5459]
[1747191355571,66.8051,180.35,180.32,5.5459]
[1747191355773,61.12,180.34,180.32,5.5459]
[1747191356672,61.26,180.35,180.29,3.6068]
[1747191356975,61.12,180.34,180.29,5.3776]
[1747191357170,61.12,180.34,180.32,5.5458]
[1747191359380,61.12,180.34,180.33,5.5456]
[1747191361985,479.44,180.4,180.29,5.3776]
[1747191362277,61.08,180.39,180.29,5.3776]
[1747191362480,66.624,180.39,180.35,5.5447]
[1747191362778,66.624,180.39,180.29,5.3776]
[1747191363282,66.624,180.39,180.35,5.5447]
[1747191363783,66.624,180.39,180.36,5.5445]
[1747191365683,5.544,180.39,180.36,5.5445]
[1747191365882,61.06,180.38,180.29,5.3776]
[1747191366482,61.06,180.38,180.37,5.5444]
[1747191372084,61.06,180.38,180.29,5.3776]
[1747191373289,5.5448,180.36,180.33,5.5454]
[1747191375089,5.5445,180.37,180.34,5.5452]
[1747191375391,5.5445,180.37,180.29,5.3776]
[1747191375788,66.6042,180.38,180.29,5.3776]
[1747191377788,66.6042,180.38,180.35,5.5448]
[1747191379489,5.5444,180.37,180.29,5.3776]
[1747191379691,61.06,180.38,180.29,5.3776]
[1747191379892,61.06,180.38,180.29,3.6068]
[1747191380093,5.5456,180.33,180.29,1.8467]
[1747191380292,66.5056,180.33,180.28,61.26]
[1747191380590,60.96,180.33,180.28,61.26]
[1747191380791,60.96,180.33,180.31,5.546]
[1747191381389,5.5459,180.32,180.29,5.5466]
[1747191381693,60.96,180.33,180.24,61.1]
[1747191381997,60.96,180.33,180.25,5.548]
[1747191383393,60.96,180.33,180.24,66.6483]
[1747191383591,60.96,180.33,180.24,61.1]
[1747191383893,60.96,180.33,180.22,5.5488]
[1747191384094,5.5477,180.27,180.2,61.1]
[1747191384290,60.94,180.26,180.2,61.1]
[1747191384492,364.2153,180.35,180.25,5.5481]
[1747191384688,1.00532134,180.34,180.2,61.1]
[1747191384990,60.94,180.33,180.2,61.1]
[1747191385190,60.94,180.33,180.28,5.5471]
[1747191386090,5.5463,180.31,180.28,5.5471]
[1747191387195,5.5463,180.31,180.27,5.5474]
[1747191387391,60.94,180.33,180.21,1.7299]
[1747191387697,60.94,180.33,180.24,5.5483]
[1747191387895,1.00483566,180.32,180.24,5.5483]
[1747191388395,1.00483566,180.32,180.23,5.5486]
[1747191388693,1.00483566,180.32,180.21,1.7299]
[1747191388892,5.548,180.26,180.22,5.5488]
[1747191389195,60.92,180.25,180.22,5.5488]
[1747191389390,60.92,180.25,180.21,1.7299]
[1747191390197,60.92,180.25,180.22,5.5489]
[1747191391697,60.92,180.25,180.21,5.5493]
[1747191392297,66.4683,180.25,180.21,5.5493]
[1747191392698,66.4683,180.25,180.22,5.549]
[1747191397099,60.92,180.25,180.2,61.1]
[1747191398400,60.92,180.25,180.22,5.5487]
[1747191398601,66.4682,180.25,180.22,5.5487]
[1747191399204,60.92,180.25,180.23,5.5487]
[1747191400103,60.86,180.27,180.2,61.1]
[1747191400401,60.94,180.29,180.2,61.1]
[1747191400804,60.86,180.28,180.2,61.1]
[1747191401000,60.86,180.29,180.2,61.1]
[1747191401204,60.86,180.29,180.28,5.5471]
[1747191401499,60.94,180.33,180.2,121.96]
[1747191401704,60.86,180.31,180.2,121.96]
[1747191402705,60.86,180.31,180.27,5.5474]
[1747191402706,5.5468,180.3,180.27,5.5474]
[1747191403106,60.86,180.31,180.2,121.96]
[1747191404208,60.86,180.31,180.29,5.5466]
[1747191404409,60.94,180.33,180.2,121.96]
[1747191404410,60.94,180.33,180.25,60.94]
[1747191404605,60.84,180.33,180.26,62.8254]
[1747191404803,424.94,180.37,180.26,62.8254]
[1747191405006,61.84472306,180.36,180.26,62.8254]
[1747191405305,66.3848,180.36,180.27,1.8]
[1747191405810,66.3848,180.36,180.33,5.5456]
[1747191407408,66.3848,180.36,180.32,5.5458]
[1747191408515,66.3848,180.36,180.33,5.5456]
[1747191413616,60.94,180.37,180.27,3.5336]
[1747191413817,60.78,180.36,180.27,3.5336]
[1747191415518,60.94,180.37,180.34,5.5451]
[1747191415816,121.7,180.37,180.34,5.5451]
[1747191416417,121.7,180.37,180.35,5.545]
[1747191417028,121.7,180.37,180.27,3.5336]
[1747191417627,5.5447,180.36,180.27,3.5336]
[1747191419025,5.5447,180.36,180.33,5.5454]
[1747191420927,66.4845,180.37,180.27,3.5336]
[1747191421226,60.72,180.36,180.27,3.5336]
[1747191422028,60.72,180.36,180.34,5.5452]
[1747191423230,60.72,180.36,180.35,5.545]
[1747191424424,5.5437,180.4,180.31,60.74]
[1747191424729,60.74,180.46,180.32,1.8663]
[1747191424929,66.2817,180.46,180.43,5.5425]
[1747191425125,60.7,180.45,180.43,5.5425]
[1747191425325,60.7,180.45,180.38,60.74]
[1747191425524,60.7,180.45,180.39,3.7701]
[1747191425728,60.68,180.48,180.39,3.7701]
[1747191425927,60.74,180.51,180.39,3.7701]
[1747191426128,66.2803,180.51,180.46,5.5414]
[1747191426424,0.2153,180.58,180.43,60.74]
[1747191426632,5.5397,180.53,180.47,5.5412]
[1747191426927,1.00360136,180.52,180.47,5.5412]
[1747191427226,1.00360136,180.54,180.46,5.5415]
[1747191427428,121.42,180.55,180.46,5.5415]
[1747191428028,1.00352294,180.54,180.46,5.5415]
[1747191428227,61.66352294,180.54,180.46,5.5415]
[1747191428428,5.5403,180.51,180.46,5.5415]
[1747191428826,5.5403,180.51,180.47,5.5413]
[1747191430030,5.5398,180.52,180.44,1.8829]
[1747191430431,5.5398,180.52,180.47,5.5411]
[1747191430830,5.5402,180.51,180.47,5.5411]
[1747191431031,60.66,180.54,180.46,5.5416]
[1747191431332,5.5404,180.5,180.46,5.5416]
[1747191431832,5.5404,180.5,180.47,5.5413]
[1747191432132,5.5408,180.49,180.44,1.8829]
[1747191432431,5.5408,180.49,180.45,5.5419]
[1747191432629,5.5408,180.49,180.44,1.8829]
[1747191432829,5.5404,180.5,180.44,1.8829]
[1747191433433,5.5407,180.49,180.46,5.5416]
[1747191435036,5.5407,180.49,180.45,5.5418]
[1747191436034,5.5414,180.47,180.43,5.5423]
[1747191436232,5.5414,180.47,180.43,66.2423]
[1747191436432,60.58,180.49,180.43,60.7]
[1747191436633,5.5411,180.48,180.44,5.542]
[1747191436830,5.5411,180.48,180.43,60.7]
[1747191437028,66.1208,180.49,180.45,5.5417]
[1747191437229,60.58,180.49,180.43,60.7]
[1747191437538,60.58,180.49,180.46,5.5414]
[1747191437833,60.58,180.49,180.43,60.7]
[1747191438437,60.58,180.49,180.47,5.5413]
[1747191438930,5.5402,180.51,180.47,5.5413]
[1747191439138,60.56,180.53,180.43,60.7]
[1747191439637,60.56,180.53,180.49,5.5404]
[1747191440138,60.56,180.53,180.43,60.7]
[1747191440333,60.56,180.53,180.49,5.5405]
[1747191440637,66.0995,180.53,180.49,5.5405]
[1747191441630,60.56,180.53,180.4,593.33577513]
[1747191441825,60.56,180.53,180.41,121.26]
[1747191442935,5.5402,180.51,180.48,5.541]
[1747191445538,5.5398,180.52,180.48,5.541]
[1747191446436,5.5398,180.52,180.49,5.5407]
[1747191447833,364.96430947,180.62,180.51,5.54]
[1747191448037,121.0,180.58,180.51,5.54]
[1747191448239,60.5,180.57,180.51,5.54]
[1747191448539,61.50517483,180.57,180.51,5.54]
[1747191448837,60.5,180.57,180.51,5.54]
[1747191449337,60.5,180.57,180.52,5.5395]
[1747191450036,364.0,180.62,180.55,5.5388]
[1747191450337,120.98,180.61,180.51,60.5]
[1747191450538,5.5377,180.59,180.56,5.5384]
[1747191450740,60.48,180.58,180.56,5.5384]
[1747191451743,60.48,180.58,180.51,60.5]
[1747191452540,66.018,180.58,180.51,60.5]
[1747191453033,60.48,180.58,180.51,60.5]
[1747191453339,364.0,180.62,180.51,60.5]
[1747191453537,61.46434898,180.61,180.51,60.5]
[1747191453740,60.46,180.61,180.51,60.5]
[1747191454038,65.9971,180.61,180.57,5.5382]
[1747191454435,65.9971,180.61,180.51,120.96]
[1747191454736,60.46,180.61,180.51,120.96]
[1747191455041,60.46,180.61,180.52,60.5]
[1747191455343,5.5381,180.58,180.52,60.5]
[1747191455947,5.5381,180.58,180.54,5.5391]
[1747191456641,5.5383,180.57,180.53,5.5394]
[1747191457442,5.538,180.58,180.54,5.539]
[1747191458644,5.5383,180.57,180.53,5.5394]
[1747191459843,5.538,180.58,180.54,5.5391]
[1747191462443,5.538,180.58,180.55,5.5388]
[1747191462645,60.48,180.6,180.47,118.46780179]
[1747191462841,1.0048903,180.59,180.48,60.48]
[1747191463345,60.6914,180.6,180.48,62.3111]
[1747191463543,1.00497495,180.59,180.48,62.3111]
[1747191463940,5.5378,180.59,180.55,5.5387]
[1747191464140,60.48,180.6,180.55,5.5387]
[1747191464546,60.48,180.6,180.53,60.48]
[1747191464845,60.4,180.59,180.53,60.48]
[1747191465046,60.4,180.59,180.57,5.5382]
[1747191469649,60.4,180.59,180.48,1.8311]
[1747191469650,65.9376,180.59,180.56,5.5385]
[1747191469853,65.9376,180.59,180.54,60.48]
[1747191470042,60.4,180.59,180.54,60.48]
[1747191470947,60.4,180.59,180.57,5.5381]
[1747191472250,5.5374,180.6,180.57,5.5381]
[1747191474351,5.5371,180.61,180.58,5.5378]
[1747191474650,65.8771,180.61,180.58,5.5378]
[1747191474856,60.34,180.61,180.58,5.5378]
[1747191475652,5.5374,180.6,180.57,5.5381]
[1747191477652,60.48,180.64,180.54,60.48]
[1747191477846,61.32408323,180.63,180.54,60.48]
[1747191478048,60.48,180.64,180.55,1.7935]
[1747191478250,66.84069798,180.63,180.6,5.5372]
[1747191478445,60.48,180.64,180.55,3.6403]
[1747191478652,61.30410578,180.63,180.55,3.6403]
[1747191478852,60.3,180.63,180.55,3.6403]
[1747191479254,60.3,180.63,180.6,5.5371]
[1747191479855,65.8365,180.63,180.6,5.5371]
[1747191480258,60.3,180.63,180.59,5.5375]
[1747191480556,60.3,180.63,180.55,3.6403]
[1747191480959,60.3,180.63,180.57,5.538]
[1747191481150,60.3,180.63,180.55,3.6403]
[1747191482658,5.5368,180.62,180.55,3.6403]
[1747191483160,5.5368,180.62,180.59,5.5374]
[1747191483461,65.8365,180.63,180.55,3.6403]
[1747191483955,65.8365,180.63,180.59,5.5373]
[1747191484161,5.5367,180.62,180.59,5.5373]
[1747191485864,60.3,180.63,180.61,5.537]
[1747191487164,65.8365,180.63,180.55,3.6403]
[1747191487767,65.8365,180.63,180.59,5.5375]
[1747191488169,65.8365,180.63,180.6,5.5373]
[1747191489465,5.5365,180.63,180.59,5.5375]
[1747191489657,65.7768,180.62,180.59,5.5375]